{"text_format":"2","workbook":"xlsx","n_sheets":1,"sheets":["BOQ"],"not_rendered":{"charts":0,"images":0,"macros":0,"external_links":0,"defined_names":1,"comments":0,"pivot_tables":0},"unopened":[],"bounds":{"document_bytes":16777216,"sheet_cells":100000,"run_cost":"one","rows_first":2000,"rows_last":500,"rows_between":2000,"halvings":0,"cell_chars":16384,"cell_head_chars":4096},"cells_cut":0,"cells_raw":0,"read":"whole","date_system":"1900"}

{"sheet":"BOQ","index":0,"n_rows":137,"n_cols":6,"rows_kept":137,"cut":false,"hidden":false,"merged":[[0,0,0,5],[1,1,1,5],[2,1,2,5],[3,1,3,5],[4,1,4,5],[7,1,7,5],[8,1,8,5],[9,1,9,5],[6,1,6,5],[5,1,5,5]]}
["Rehabilitation of Three Water Pump Stations of Mosul University-East Mosul-Ninawa Governorate"]
[null,"General Specification "]
[1,"All works and the materials supplied by the contractor must be in according with the relevant Iraq's standard Specifications ( It’s the contractor responsibility to obtain any relevant Iraqi specifications by visiting ministry of construction and housing web site: www.moch.gov.iq (or physically obtain those documents from the mentioned ministry) in addition to Iraqi technical specification for building works."]
[2,"Permanent signage (after implementation is completed): (60cm x 40cm), printed on white aluminum composite (trade name – Dibond). To be placed in a prominent position at the main entry door of the site, at eye level."]
[3,"Temporary signage (during implementation): (W 190cm x H 90cm) printed on mounted plastic sheeting."]
[4,"The contractor must provide samples, mock-up, catalogues for testing / inspection and approval by the site engineer."]
[5,"Contractor must pay the cost for samples including any laboratory tests, both inside and outside the country as required."]
[6,"The price of works includes all job requirements as per Iraq's standard specification."]
[7,"The contractor must provide PPE for all laborer's, personnel, engineers and possible visitors to the site."]
[8,"Contractor must provide site office (New Prefabricated) at least 30 m2 area, with furniture include 2 office rooms, small kitchen and toilet, with all electrical, plumbing , heating and ventilation and all required accessories, to be used during the implementation period. "]
["#","Item Description","Unit","Qty","Price$","Total $"]
[null,"CIVIL WORKS"]
[1,"Site preparation:\n1-Clearing, stripping and levelling of the site.\n2-Remove debris and cleaning area around the site with area  (6300)m2\n3-Removing all finishing materials, tile bedding, concrete pieces, blocks, other materials, evacuating the site from old booster pumps, steel and pvc pipes, electrical boards, cartons, furniture,..... ,etc.\n4-Dumping of all the debris and rubble to a site approved by the local authorities.\n5-Dismantling galvanized storage tank (500m3)   transporting  it to the warehouse of Mosel  university inside university campus , the work includes removing  concrete foundation with levelling and  cleaning the site of old storage tank.\n6-Removing the container with dimension (12 *2) m in the site to the warehouse of University.\n7-Dismentaling the 250kVa generator and transporting it to the Mosul university warehouse with all accessories.\n8-Washing and cleaning the water storage tank with dimensions (17*9*4.5)m, removing the dirt's on the tiles face.\n All needed work to complete the job will be included within the price.\"  it to the warehouse of university inside university campus , the work includes removing  concrete foundation .\nand All needed work to complete the job will be included within the price.","LS",1,null,{"$f":"E13*D13","v":0}]
[2,"Excavation Works:\nExcavation in all types of soil (even rock layers, existing asphalt, concrete foundations, etc.) for the foundations(including storage tank 500m3) and walkways starting at the existing ground level down to the required depth  approved by the engineer and according to the enclosed drawings, removal of all material to a site approved by local authorities. The price include cleaning the bed of the excavation, compaction using vibratory roller and back-filling. All needed work to complete the job will be included within the price.","M3",185,null,0]
[3,"Filling works:\nSupply of materials, tools and manpower for filling (in layers not exceeding 25cm, including compaction up to 95% of MDD) with sub base (type A) where required within the area inside the fence such as aprons, walkways, garden, foundations etc. All needed work to complete the job will be included within the price.","M3",128,null,0]
[4,"Concrete with BRC:\nSupply of materials, tools and manpower for casting (15cm ) concrete with BRC(150x150x5mm) using one layer  of thick polyethylene 1mm , and sulphate resistant cement for (C25MPa) concrete. The price includes providing expansion joints every 4m both directions, filling the joints with mortar(1:3),. All needed works to complete the job will be included within the price.","M2",620,null,0]
[5,"Blinding (Lean) Concrete Under Foundation:\nSupply of materials, tools and manpower to cast (10cm) plain concrete for blinding under the foundations using concrete (C20Mpa) and sulphate resistant cement, and laying two layers of thick polyethylene 1mm. (The polyethylene should also cover the sides of excavation walls and extend on land for 50cm to both sides of excavation). All needed work to complete the job will be included within the price.","M2",120,null,0]
[6,"Foundation of the steel water tank:\nSupply of materials, tools and manpower for casting reinforced concrete foundation of the steel water tank including beams of (11x0.6x0.3m) spaced @1.22m c/c using concrete (C-30MPa) and sulphate resistance cement. All needed works to complete the job shall be included within the price. See attached drawings","M3",80,null,0]
[7,"Hot Dipped Galvanized Steel  Sectional Water Tank with Net Capacity (435m3):\nSupply, install, test and commissioning of galvanized water tank with net  capacity 435m3 and with the dimensions (W 8.54X L 10.98X H 4.88)m.\nThe steel used in the manufacture of the tank plates, stays and cleats conform to the requirements of BS 4360 : ISO9001 or equivalent. Material composition Q235 steel and the casket rubber between panels resistance more than 80C temperature. The thickness of the tank should be at least 5mm for all sides (except the roof)),\nThe price includes access manhole aluminum ladder for internal and external access, two 6\" inlets, three 6\" out lets, 8 number of 4\" air vents, one number of 6\" overflow, vent cowl with vermin screen, overflow pipe, float valves, drain valve, isolating valve, level switch indicator, Bolts, Nuts and Washers: Hot Dipped Galvanized steel bolts, nuts and washers for internal and external, Jointing Materials: Non toxic PVC foam to be used for all jointing between tank panel flange, Tank Cover: Panel type or pitched type steel cover supported by trusses 600 x 600 square manhole and 100mm air-vent supplied as standard for each compartment, Water Level Indicator: Mechanical Ball Float Type, Finish :(a) Hot Dip Galvanized conform to BS 729 or ISO equivalent(b) Black Bituminous Coated, suitable and standard civil and concrete foundation works for water tank. with all connections and accessories, All needed works to complete the job shall be included within the price","NO.",1,null,0]
[8,"Casting the holes in the slab(roof):\nSupply materials, tools and labors to repair damaged area of the reinforced concrete slab by demolition the destroyed area and removing all debris and rubble out of the site to complete a good work. The Price will includes recasting a reinforced concrete for the damaged area of the slab (Compressive Strength 25 MPa), steel bars. 12 dia. @ 20 cm spacing in both direction (and top and bottom) and using bonding agent to create a bonding slurry when mixed with cement. The new slab must be placed on the old slab with a minimum overlap not less than 50 cm and treat both contacted slab with waterproofing seal ( applying liter/2.5m2) to prevent water leakage. The price of work shall include the formworks of the slab,  treating of the hole from inside the hall, filling the slab to coincide with the existing ceiling level. All needed work to complete the job will be included within the price.","M3",1,null,0]
[9,"Repairing of roofing system (Including mosaic tiles):\nSupply of materials, tools and manpower to remove all the damaged roofing layers and dumping of all the rubble to a site approved by local authorities, and providing the roofing layers as follows(applying water-proofing flint coats, two layers of bitumen felt 4mm,  water-proofing flint coats, laying of compressed Styrofoam 5cm (density 35 kg/m3) and applying the concrete roof tiles (mosaic 30x30cm), refilling the joints with mastic and giving the slope for water drainage. All needed work to complete the job will be included within the price. See attached drawing.","M2",70,null,0]
[10,"Repairing of roofing system:\nSupply of materials, tools and manpower to clean the roof of the rooms ,and installing  two  layers of bitumen felt 4mm,The job includes cleaning the roof, applying one layer of bitumen, removing the dirt and dust and filling all the holes before applying bitumen. All needed works to complete the job, shall be included within the price.","M2",135,null,0]
[11,"Chain Link Fence with Precast Concrete Pole:\nSupply of materials, tools and manpower to install galvanized chain link fence (50x50x3mm) of (2.40m) height on precast concrete poles (10x10cm) and (2.40m) height spaced every (2.0m). The price includes the following:\n1-Removing of the old and damaged chain fence.\n2-Excavation (40x40x40cm) for the precast concrete pole footings .\n3-Providing precast concrete pole(column) 100x100mm and 2.40m height.\n4-Plain concrete footing (40x40x40cm) after installing the poles.\n5-Three tie/binding strand wire 5mm at (bottom, middle and top) of the poles.\n6-Bracing inclined poles for the corners and at every 20m of straight lines.\n7-Providing three barbed wires at the top of the poles (for security).\nAll needed work to complete the job will be included within the price. See attached annexes.                                             \n","ML",230,null,0]
[12,"Plain Concrete for walkways:\nSupply of materials, tools and manpower for casting (15cm ) plain concrete (C25MPa) using sulphate resistance cement for walkways, The price includes removing the damaging walkways , adding bonding agent material between the old and new concrete(if any)., formworks. All needed works to complete the job will be included within the price.","M2",130,null,0]
[13,"Reconstruction of damaged fences:\nSupply of materials, tools and manpower to demolish the damaged parts of the fences and remove all the debris to a site approved by local authorities, then reconstruction of the fences using solid concrete block (15x20x40cm) with cement sand mortar (same as the existing fence). The wall should be levelled vertically and horizontally. All needed works to complete the job, will be included within the price","M3",9,null,0]
[14,"Parapet:  \nSupply of materials, tools and manpower to rebuild parapet wall using solid concrete blocks 15x20x40 cm and sand mortar (1:3). The work includes the cement plastering for two sides and the upper of parapet. All needed works to complete the job will be included within the price.","M3",5,null,0]
[15,"Plastic Suspended Ceiling :\nSupply of materials, tools and manpower to install plastic suspended ceiling 60x60 cm, 7mm thickness, by using necessary accessories L, T sections, hold down clips, galvanized steel rod 5mm (1.2x1.2m) for fixing with the ceiling by screws. The price includes the removal of old damaged suspended ceiling, dumping of all debris to a site approved by local authorities, in case it is needed. All needed work to complete the job will be included within the price. See attached drawing.","M2",32,null,0]
[16,"Gypsum board Suspended Ceiling :\nSupply of materials, tools and manpower to install  gypsum board suspended ceiling 60x60 cm, 7mm thickness, by using necessary accessories L, T sections, hold down clips, galvanized steel rod 5mm (1.2x1.2m) for fixing with the ceiling by screws. The price includes the removal of old damaged suspended ceiling, dumping of all debris to a site approved by local authorities, in case it is needed. All needed work to complete the job will be included within the price. See attached drawing.","M2",75,null,0]
[17,"Cement Plastering without crack repairing:\nSupply of materials, tools and manpower to repair the damaged cement plastering for the exterior walls and fences (20 mm thickness) using cement and sand mortar (1:3) and using aluminum straight edges. the price includes  removing the limestone, cement plaster (existing),dirts,All needed work to complete the job will be included within the price.","M2",480,null,0]
[18,"Cement rendering:\n Supply materials, tools and labors to make cement rendering for external  walls  by using white cement and filler(1:2) , the price including clean the wall  from dust. All needed works to complete the job will be included within the price.","M2",360,null,0]
[19,"Gypsum plastering with crack repairing:\nSupply of all necessary materials, tools and manpower to remove the damaged gypsum plastering of internal walls & ceiling and plastering with new gypsum plastering  in 2 layers minimum thickness 20mm.The work includes repairing of wall cracks by removing the damaged gypsum plastering 25cm at each side of the crack, then filling the cracks with cement mortar 1:3 and using SBR at a rate of 200gr per m2 , later putting a layer of plastic mesh on the area under the gypsum plastering. All needed works to complete the job, will be included within the price.","M2",40,null,0]
[20,"Plastic painting:\nSupply of materials, tools and manpower to paint the exterior walls and fence, with three layers of plastic (silicon water proof) paint (Jotun, Betek, CAPAROL, Polisan, dyo or equivalent). The paint should be diluted (10%--15%) with water to achieve the coverage of painting of not more than (10-12) m2/Liter/layer.  The job includes cleaning the walls, removing the dirt and dust, repairing all the cracks and filling all the holes before painting. All needed works to complete the job, shall be included within the price.\n","M2",1310,null,0]
[21,"Oil Painting:\nSupply of materials, tools and manpower to paint the steel doors, windows, towers and internal walls with a paint (1.50m height) for skirting using 3 layers of oil paint (Jotun, Betek, CAPAROL, Polisan, dyo or equivalent). The paint should be diluted (10%--15%) with paint thinners to achieve the coverage of painting of not more than (10-12) m2/Liter/layer.  The job includes cleaning the walls, removing the dirt and dust, repairing all the cracks and filling all the holes before painting. All needed works to complete the job, shall be included within the price.","M2",260,null,0]
[22,"Cement plastering with crack repairing:\nSupply of materials, tools and manpower to repair wall cracks and remove the damaged cement plastering of external walls & fence by removing the damaged cement plastering minimum 35cm at each side of the crack, then treat the cracks with crack filler approved by manufacture with cement mortar 1:3 and using SBR at a rate of 200gr per m2, later putting a layer of metal chicken mesh 10 cm overlap each side on the area with 3 layers of cement plastering 1:3. All needed works to complete the job, will be included within the price.","M2",30,null,0]
[23,"Limestone Window Frame ( كوبنات الحلان):\nSupply of materials, tools and manpower to install new limestone window frame with width 30cm and different lengths,  using cement sand mortar. The work includes using BRC 200x200x5mm under the limestone. All needed work to complete the job will be included within the price.","ML",55,null,0]
[24,"Steel Door with the Frame(1.0x2.10m):\nSupply of materials, tools and manpower to install steel door with frame, with steel plate gauge 18(1.41mm) on double face, using steel tube 40x40x2mm, including a layer of Styrofoam to be placed between the two faces, hinges, doors handles, locks and fixing a stopper on the floor or wall. The price of work includes the painting of steel door using anti-rust and 2 layers of oil paint. All needed work to complete the job will be included within the price. See attached drawing.","NO.",4,null,0]
[25,"Steel Door with the Frame(2.0x2.30m) Double Leaves:\nSupply of materials, tools and manpower to install steel door with frame, with steel plate gauge 18(1.41mm) on double face, using steel tube 40x40x2mm, including a layer of Styrofoam to be placed between the two faces, hinges, doors handles, locks and fixing a stopper on the floor or wall. The price of work includes the painting of steel door using anti-rust and 2 layers of oil paint. All needed work to complete the job will be included within the price. See attached drawing.","NO.",2,null,0]
[26,"Repair steel doors:D1(2*2.5)m,D2(2.5*1)m,D3(2*2.2)m\nSupply of materials, tools, machineries and manpower to repair the damaged steel doors. Price of works shall include door lock, handles, hinges, oil painting and accessories. All needed work to complete the job will be included within the price.","M2",12,null,0]
[27,"Repair Steel Windows W1(1.3*2))m ,W2(1.5*1.3)m ,W3(0.5*0.5)m,W4(1*3)m,W5(1.5*2)m,....:\nSupply of materials, tools, machineries and manpower to repair the damaged steel windows, including welding, painting, anti-insects wire mesh for openable parts and handle and  remove the damaged glass and paste and to install new crystal clear glass 4 mm . All needed works to complete the job, will be included within the price.","M2",24,null,0]
[28,"Aluminum windows:\nSupply of materials, tools and manpower to install  aluminum windows (frames of minimum 60 mm width). The price of works includes anti-insects wire mesh, handles, windows stopper and crystal clear class 4mm thickness. All needed work to complete the job will be included within the price.","M2",44,null,0]
[29,"Aluminum Doors with Frame(1.0x2.10m):\nSupply of materials, tools and manpower to install aluminum doors with frame. The aluminum section should not be less than 60mm width. The lower 1.0m portion of the door to be covered by aluminum sheets and the upper portion will be covered by glass 6mm. The price includes hinges, handles, locks and frosted glass (6mm) . All needed works to complete the job, will be included within the price. See attached drawing.","NO.",6,null,0]
[30,"Windows Burglar:\nSupply of materials, tools and manpower to make steel burglar for the windows using  12mm square steel bar every 15cm and the outer frame of angle section 50x50x2mm. The price of works includes anti rust painting and two layers of oil painting. All needed work to complete the job will be included within the price. See attached drawing.","M2",32,null,0]
[31,"Terrazzo(Mosaic) tiles for Floors:\nSupply of materials, tools and manpower to remove the damaged mosaic tiles, concrete trenches, walls and dumping it to a place approved by local authority, then apply mosaic tiles for floors (30x30cm) or same as the existing size and color, using cement sand mortar(1:3), filling the joints with white cement . All needed work to complete the job will be included within the price.","M2",280,null,0]
[32,"Skirting:\nSupply of materials, tools and manpower to apply ceramic skirting 10cm height using cement mortar. The price includes removing of all the damaged skirting and dumping it to a site approved by local authority, filling the joints with white cement paste. All needed work to complete the job will be included within the price.","ML",65,null,0]
[33,"Porcelain tiles for Floors:\nSupply of materials, tools and manpower to remove the damaged ceramic and mosaic tiles and dumping it to a place approved by local authority, then apply non-slip porcelain tiles for floors (40x40cm), using cement sand mortar(1:3), filling the joints with white cement paste. All needed work to complete the job will be included within the price.","M2",85,null,0]
[34,"Ceramic tiles for Walls:\nSupply of materials, tools and manpower to remove the damaged ceramic tiles and dumping it to a place approved by local authority, then apply ceramic tiles for walls (25x50cm) or same as the existing size and color, using cement sand mortar(1:3), filling the joints with white cement paste. All needed work to complete the job will be included within the price.","M2",145,null,0]
[35,"In-situ Polishing and glazing of floor terrazzo(mosaic) tiles:\nSupply of materials, tools and manpower for polishing and glazing of the terrazzo(mosaic) tiles. The price includes filling the joints with white cement paste. All needed work to complete the job will be included within the price.","M2",340,null,0]
[36,"Steel Ladder:\nSupply of materials, tools and manpower to install steel ladder . The price includes painting with anti-rust paint and three layers of oil paint.  All needed work to complete the job will be included within the price. See attached drawing.","ML",18,null,0]
[37,"Gardens:\nSupply materials, tools and manpower to Cleaning the gardens and uprooting the bushes and grass, the work includes remove the rubble and remove ,restoration of the garden 20cm thickness of clean  loam(agriculture soil) ,  planting of lawn , and adding concrete tiles for decoration ,and all the necessary work and according to the guidance of the supervisor. All needed work to complete the job will be included within the price.","M2",560,null,0]
[38,"Room Title Board:\nSupply of materials and manpower to install room title name made of plastic sheet size 20x40 cm, using screws to fix. All needed work to complete the job will be included within the price.","NO.",6,null,0]
[39,"Replacing Damaged Corrugated Sheet:                                                                          \nSupply of materials, tools and manpower to replace the damaged corrugated metal sheet  and maintain the steel frame, the price includes paint(three layers of oil paint) and fixing the steel structure , adding missing pieces ,then adding  new corrugated metal sheet  thickness 0.5mm. The price also includes dumping of all debris to a site approved by local authorities.  All needed work to complete the job will be included within the price.","M2",20,null,0]
[40,"Metal Doors for the Fence: \nSupply of materials, tools and manpower to install (two leaves) steel door (H2.8 ×W4.0m) and one leaf (H 2.2*W 1m) by using BRC (50x50x4mm) and steel angle 75x75x3mm, 50x50x3mm and 38x38x2.5mm. The price of works includes door lock, handle, painting of steel door by using 2 layers anti-rust and 3 layers of oil painting. All needed works to complete the job will be included within the price. See attached drawing","NO.",2,null,0]
[41,"Prefab cabin (3.0x4.0m):   \nSupply of materials, tools and manpower to install a prefab cabin (3x4m). The main frame (beams and columns) consist of square tube 100x100x3mm and the secondary frames consist of rectangular tube 100x50x3mm. The slab and the walls consist of sandwich panel thickness 5 cm, and the floor consist of plywood (18mm) and parquet floor (plastic) 5mm thickness. The price include one PVC door (1.0x2.0m) with door lock, double glass 6mm, and two PVC windows (1.0x1.0) nets PVC double glass type 4 mm. With (Lighting external and internal, fluorescent light ceiling three inside, three outside, socket of 13 AMP  and installation of one  air conditioner split unit of 1.0 ton with the base plate with Main circuit distribution of 6 line. All needed works to complete the job, will be included within the price. See attached drawing.","NO.",1,null,0]
[null,"Subtotal for Civil Works",null,null,null,{"$f":"SUM(F13:F53)","v":0}]
[null,"SANITARY WORKS"]
[1,"Water tank:\nSupply of materials, tools and manpower for installing galvanized water tank of 1250 liters. Cylindrical shape and with plate gauge 16(1.56mm), supported by steel base made with 50mm (2\") angle shape, including the connection of the inlet and outlet pipes. The price of work includes all piping and fittings, valves, float valves, accessories. All needed work to complete the job will be included within the price.","NO.",4,null,0]
[2,"Siphon (Flush Tank):\nSupply of materials, tools and manpower to install siphon, valves and all needed accessories for completing water connections. All needed works to complete the job, will be included within the price.","NO.",2,null,0]
[3,"Taps: \nSupply of materials, tools and manpower to connect chrome water taps 1/2\" or 3/4\". Price of the work shall include water connections. All needed work to complete the job will be included within the price.","NO.",12,null,0]
[4,"Ceramic wash basin:                                                                                                                                    Supply of materials , tools and manpower to install ceramic wash basin with stand, mixer taps , valves , mirror(60x50)cm and all  fittings with complete water connections . All needed work to complete the job will be included within the price.","NO.",3,null,0]
[5,"Mixer taps :\nSupply of  materials, tools and manpower to install mixer taps , locks and all  accessories with complete water connections. All needed work to complete the job will be included within the price.","NO.",3,null,0]
[6,"Galvanized iron water pipes(3/4\"):\nSupply and install galvanized water pipes. The price includes all fittings and accessories, excavation, backfilling, painting the pipes using 3 layers of anti rust then isolate all hot water pipes by using arm flex and thermal tape and Teflon seal  for connections of cold and hot water pipes and concreting 10cm around the pipes. All needed work to complete the job will be included within the price.","ML",120,null,0]
[7,"Galvanized iron water pipes(1\"):\nSupply and install galvanized water pipes. The price includes all fittings and accessories, excavation, backfilling, painting the pipes using 3 layers of anti rust then isolate all hot water pipes by using arm flex and thermal tape and Teflon seal  for connections of cold and hot water pipes and concreting 10cm around the pipes. All needed work to complete the job will be included within the price.","ML",45,null,0]
[8,"PVC pipe 4\" (Ø 100mm):\nSupply, installation, testing and commissioning of PVC 4\"(100mm) 6 bar for drainage and ventilation pipes down to manholes with all required fittings including excavation, back filling, incasing with sulphate resistant cement concrete and roof vent caps. All needed works to complete the job, will be included within the price.","ML",55,null,0]
[9,"Masonry manholes: \nSupply of materials and construction of manholes of different depths with internal dimension (40x40cm) using solid concrete blocks 15X20X40 cm for walls. The price includes excavation, crushed stone, plain concrete, walls, plastering both sides, &  cast iron covers. See attached drawing.","NO.",10,null,0]
[10,"Mirrors with (30*50)cm :\nSupply of  materials, tools and manpower to install mirrors and  with all  accessories All needed work to complete the job will be included within the price.","NO.",3,null,0]
[11,"Floor Drain (15*15) cm:       \nSupply of materials, tools and manpower to install and inspect floor drain (15*15) cm with cover from (stainless steel) 6 inch. The work include UPVC gully trap dimeter 4 inch with all pipes and fittings, excavation, concreting around pipes and gullies. All needed works to complete the job, shall be included within the price.    ","NO.",8,null,0]
[12,"Roof Drain pipes (4\"):\nSupply of materials, tools and manpower to remove the damaged water roof drain pipes and install new galvanized steel pipes 4\" (100mm). Including all connections and needed accessories to fix on roof and walls. All needed work to complete the job will be included within the price. See attached Drawings","ML",30,null,0]
[13,"Clean the sewerage :\nSupply of materials, machine and manpower to clean the sewerage pipes net starting from the toilets, manholes to the main septic tank using high pressure air/water. The work includes replace the damaged manhole covers and others with new one.  All needed work to complete the job will be included within the price.","LS",2,null,0]
[14,"Electrical Water Heater(wall mounted) : \nSupply, install,  connect, and commission electrical heater 80Liter capacity 3 kW, with complete fittings & accessories includes wiring/connecting with 1.0 kV grade 3*4 mm² PVC insulated copper cable/wires laid inside existing concealed PVC pipe and if required laid through new surface PVC pipe (20 mm dia) with all accessories. The price includes supplying, installing, connecting, laying, drilling & cutting ( concrete wall if required ) and commissioning to complete works as required.   ","NO.",2,null,0]
[15,"Water Dispenser : \nSupplying, installation and testing of hot and cold free standing water dispenser. 20liters capacity, with integrated refreshment chiller and 2 water taps. Including delivering assembly and installation. Ready to be used . See attached annex.","NO.",3,null,0]
[16,"Shower head and mixer taps:\nSupply of materials, tools and manpower to install mixer taps with shower head. The price of works includes all needed fittings after removing the broken base.  All needed work to complete the job will be included within the price.","NO.",2,null,0]
[17,"Stainless steel double bowl sink:\nSupply of materials, tools and manpower to install and commission of stainless steel double bowl sink (150x60cm). Complete with: chrome mixer for sinks, supports, waste outlet, tail piece, P-trap chrome, chrome plated 14mm and required parts for the water supply line. All needed work to complete the job will be included within the price.","NO.",2,null,0]
[18,"Eastern toilet:\nSupply of materials, tools and manpower to remove the damaged eastern toilet pan and to install new ceramic eastern toilet. Including siphon(flush tank),  gully trap Ø100mm (4\"), flexible hose and water connections. All needed work to complete the job will be included within the price.","NO.",2,null,0]
[null,"Subtotal for Sanitary Works",null,null,null,{"$f":"SUM(F56:F73)","v":0}]
[null,"Electrical WORKS"]
[null,"Notes:\nElectricals Works shall include removal and disposal of all defective and damaged items to designated stores, and the following items shall include supply, replace, install, connect and commission lighting points including switches, and power socket outlets, and other electrical points, including laying wires/ cables through  PVC conduits in a trench with the depth and width specified by supervisor engineer up to its sub-panel board. In case the conduits and /or wires already exist then the contractor must ensure to check thoroughly and make a proper replacement for defective items if any. All the necessary equipment/items must be earthed properly with a specific cross-section size not less than a neutral cable size.\nFor exposed conduits, the galvanized type shall be used and fixed on walls by suitable brackets and regulated in parallel shape to the slabs and to each other."]
[1,"Soft Starter & control panel for motors of booster pump station:\nSupply, install, test, and commissioning of prefabricated enclosed soft starter panel for pump station motors, the enclosed soft starter to be (Eaton, Delta, ABB, Schneider or equivalent) complete with touch-screen, the soft starter ratings and parameters shall comply to motor pumps in mechanical items, the panel shall include, cooling fan, thermal overload protection, magnetic contactor 3Ph, motor protection circuit breaker MCCB, phase failures, terminal, lugs, cables, wires, wire terminals,  clamps, PVC trenches, bus bars, phase indicator lamps, digital multi-function meters, 3-position switch, on/off push-button switches, ammeter, CTs, bus bars, operation hour meter, required material, and accessories, etc.) and shall include all required protection equipment in addition to required protections in the (Water Pump) mechanical items.\nAll the above to be installed inside prefabricated enclosure metal frame board with twin internal and external door, suitable dimensions wall/stand-mounted, IP54 using rubber gaskets and equipped complete with all required materials ).\nAll items should be arranged properly, which affords a high degree of safe operation. The scope includes required glands, screws, insulators, wires, clamps, terminal lugs, trays, connection works,..etc... The price includes supplying, installing, connecting, laying, drilling & cutting ( concrete wall if required ), and commissioning to complete works as required. (See attached GTP/Compliance sheet)."]
[1.1000000000000001,"Complete set enclosed soft starter panel for 3Ph, 400v, 50Hz, 60hp motor for PS2","NO.",3,null,{"$f":"E78*D78","v":0}]
[1.2,"Complete set enclosed soft starter panel for 3Ph, 400v, 50Hz, 40hp motor for PS1","NO.",3,null,{"$f":"E79*D79","v":0}]
[1.3,"Complete set enclosed soft starter panel for  3Ph, 400v, 50Hz, 30hp motor for PS3","NO.",3,null,0]
[2,"Main Distribution Board (MDB) for PS1:\nSupply, install, test, commission prefabricated Main Distribution Board for PS1m (close to Science of Quran), enclosure metal frame with twin internal and external door, (180 cm x 80cm x 60cm), incorporated in DIN bar with following  incoming and outgoing. The price includes dismantling old wires and Circuit breakers, drilling & cutting ( concrete wall if required ) and commissioning include (cable termination with Cu lugs at both ends, glands, screws, insulators) to complete works as required:\nA - [(1 No.) 400A, 3 Ph. MCCB type, breaking capacity 36 kA]\nB- [(3 No.) 100A ,3Ph  MCCB type, breaking capacity 36 kA]                                                                  \nC- [(2 No.) 63A, 3 Ph. MCCB type, breaking capacity 36 kA]\nD- [(2 No.) 40A ,3Ph  MCB type, breaking capacity 25 kA]\nE - (1 No.)Voltmeter (0- 400 V) with selector switch (all Ph-Ph and Ph. -N)\nF - (1 Set)Ammeter (0 -400A), 400/5A with required CTs..\nG - (1 No.)Hertz meter (48- 52 )Hz.\nH -  (1 No.) selector switch.(ON & OFF position)\nI - (3 No.) Indicator lamp 230VAC\nJ - Three-Phase, four wires Kilowatt-hour meter with all accessories.\nK - (4 strips Copper Bus-Bar suitable size  and capacity 600 A., for three Phase lines and  neutral )  with separate earth strip.","NO.",1,null,0]
[3,"Main Distribution Board (MDB) for PS2: \nSupply, install, test, commission prefabricated Main Distribution Board for PS2, (close to dentistry college), enclosure metal frame with twin internal and external door, (180 cm x 80cm x 60cm) , incorporated in DIN bar with following  incoming and outgoing. The price includes dismantling old wires and circuit breakers, drilling & cutting ( concrete wall if required ) and commissioning include (cable termination with Cu lugs at both ends, glands, screws, insulators) to complete works as required:\nA- [(1 No.) 400A, 3 Ph. MCCB type, breaking capacity 36 kA]\nB- [(3 No.) 160A ,3Ph  MCCB type, breaking capacity 36 kA]                                                                  \nC- [(2 No.) 63A, 3 Ph. MCCB type, breaking capacity 36 kA]\nD- [(2 No.) 40A, 3Ph  MCB type, breaking capacity 25 kA]\nE- (1 No.)Voltmeter (0- 400 V) with selector switch (all Ph-Ph and Ph. -N)\nF- (1 Set)Ammeter (0 -500A), 500/5A with required CTs..\nG- (1 No.)Hertz meter (48- 52 )Hz.\nH- (1 No.) selector switch.(ON & OFF position)\nI- (3 No.) Indicator lamp 230VAC\nJ - Three-Phase, four wires Kilowatt-hour meter with all accessories.\nK- (4 strips Copper Bus-Bar suitable size  and capacity 600 A., for three Phase lines and  neutral )  with separate earth strip.","NO.",1,null,0]
[4,"Main Distribution Board (MDB) for PS3:\nSupply, install, test, commission prefabricated Main Distribution Board for PS3, (Al Qusur), enclosure metal frame with twin internal and external door, (180 cm x 80cm x 60cm), incorporated in DIN bar with following  incoming and outgoing. The price includes drilling & cutting ( concrete wall if required ) and commissioning include (cable termination with Cu lugs at both ends, glands, screws, insulators) to complete works as required:\nA -[(1 No.) 250A, 3 Ph. MCCB type, breaking capacity 36 kA]\nB- [(3 No.) 80A ,3Ph  MCCB type, breaking capacity 36 kA]\nC- [(2 No.) 63A ,3Ph  MCCB type, breaking capacity 36 kA]                                                                  \nD-[(2 No.) 40A ,3Ph  MCB type, breaking capacity 25 kA]\nE -(1 No.)Voltmeter (0- 400 V) with selector switch (all Ph-Ph and Ph. -N)\nF -(1 Set)Ammeter (0 -300A), 300/5A with required CTs..\nG- (1 No.)Hertz meter (48- 52 )Hz.\nH- (1 No.) selector switch.(ON & OFF position)\nI- (3 No.) Indicator lamp 230VAC\nJ - Three-Phase, four wires Kilowatt-hour meter with all accessories.\nK- (4 strips Copper Bus-Bar suitable size  and capacity 350 A., for three Phase lines and  neutral )  with separate earth strip.","NO.",1,null,0]
[5,"MCCB:\nSupply, install, test, and commissioning 4-pole, 200A, MCCB (ABB, Schneider, or equivalent) in the electrical board in the building near to the Al-Qasir pump station. The price includes (cable termination with Cu lugs, glands, screws, insulators, clamps, etc.) to complete works as required.","NO.",1,null,0]
[6,"Sub Distribution Boards 12 Ways (SDB): \nSupply, install, test, and commissioning of for 12 ways, TPN DB (DIN type, horizontal/vertical) complete set to accommodate incoming miniature circuit breaker (MCB) triple pole, (1 x 63 Amps, 415 volts A.C, 50 Hz, 10 kA breaking capacity), outgoing single pole MCB ( 4x16 Amps),(4x20 Amps)(4x25 Amp), on/in prefabricated MS cubical control board with neutral and earthing strip/bar, flush type board with all accessories. The price includes drilling & cutting ( concrete wall if required ) and commissioning include (cable termination with Cu lugs at both ends, glands, screws, insulators) to complete works as required.","NO.",6,null,0]
[7,"LED Spot Lighting fixture (LED 32W):\nSupply, install, connect and commission spot lighting fixtures, LED (240VAC/32W), complete set with all accessories such as base, LED drive, metal heat dissipation , glass, reflector with all accessories includes copper cable/wires, 1.0 kV grade, 2*1.5mm², PVC insulated, laid inside concealed PVC pipe (25 mm dia) with 6 A switches with all accessories The price includes supplying, installing, laying, cutting, drilling, connecting, and commissioning to complete works as required.","NO.",10,null,0]
[8,"LED Spot Lighting fixture (LED 18w):\nSupply, install, connect and commission spot lighting fixtures, LED (240VAC/18W), complete set with all accessories such as base, LED drive, metal heat dissipation , glass, reflector includes wiring with 1.0 kV grade 2*1.5mm² PVC insulated copper cable/wires laid inside concealed PVC pipe (25 mm dia) with 6 A switches  with all accessories. The price includes supplying, installing, connecting, laying, drilling & cutting ( concrete wall if required ) and commissioning to complete works as required.","NO.",7,null,0]
[9,"LED Lighting (4 feet):                \nSupply, Install, test, and commissioning of waterproof LED lighting fittings (120 cm), 60-70W, (IP65),  connecting with 1.0 kV grade 2x1.5 mm² PVC insulated copper cable, using switch (6A, 220 VAC) laid through the concealed PVC conduit pipe (25 mm dia) with all accessories. The price includes laying, drilling & cutting ( concrete wall if required ), and commissioning to complete work as required.","NO.",25,null,0]
[10,"Outdoor Bracket wall mounted lights (LED 24w):\nSupply, install, test, and commissioning of Outdoor Bracket wall mounted lights fixture (LED 24w, 240v), IP65, complete set, photocell controlled, with all accessories includes copper cable/wires, 1.0 kV grade, 2*1.5mm², PVC insulated, laid inside concealed PVC pipe (25 mm dia) with 6 A switches with all accessories The price includes supplying, installing, laying, cutting, drilling, connecting, and commissioning to complete works as required.","NO.",12,null,0]
[11,"Outdoor projector LED Flood Lighting Fixture:\nSupply, install, connect, test, and commission of Flood Lighting Fixture, LED type, 150 Watt  IP65, Body Material of Aluminum, photocell controlled, the price includes copper cable, NYY type, 1.0 kV grade, 4x4mm², laid through Galvanized metal conduit with all accessories such as suitable mounting bracket galvanized clamps, etc. The price includes laying, drilling & cutting ( concrete wall if required ), and commissioning to complete works as required.","NO.",12,null,0]
[12,"Lighting photocell Board:\nSupplying, installing, testing, and commissioning of complete lighting photocell set and metal board dimension ( 40X30X25)cm includes:\n- One (1) set of triple pole magnetic contactors, 3-Ph, (65A).\n- One (1) set of MCB circuit breaker 3-Ph (32A).\n- One(1) set of the three-position selector switches (Manual-0-Auto)\n- Set of (ON-OFF) Push button for manual operation.\n- photocell sensor\n- Set of Indicator (ON-OFF)\n- Any other necessary requirement such as wires, connectors, wire terminals, PVC trenches ..etc.\nThe price includes:  connecting, necessary cutting, drilling, testing, and commissioning with all accessories to complete works as required.","NO.",3,null,0]
[13,"Ceiling fan: \nSupply, install, test, and commission of ceiling fan (240-volt A.C 1400 rpm, 1400mm sweep with 56\") with power regulator including wiring (2x1.5mm²) cable 1.0kV grade cable, PVC insulated copper conductor laid through concealed PVC conduit/surface GI conduit with all accessories the down rod of standard length up to 300mm with all accessories such as down rod, sweeps 3 Nos., canopy 2 Nos., condenser and fan body, drilling & cutting ( concrete wall if required ), and commissioning to complete works as required.","NO.",8,null,0]
[14,"Socket Switch 13A:\nSupply, install, connect, test, and commission of socket switch 13A,  Universal, 3 pins with shuttered & indicator outlet, on Galvanized metal molded tough surface box, with 1.0kV grade, 3x 2.5 mm², PVC insulated copper conductor laid through concealed  PVC conduit pipe (25 mm dia) with all accessories. The price includes drilling & cutting ( concrete wall if required ) and commissioning to complete work as required.","NO.",30,null,0]
[15,"Single phase electrical point:\nSupply, install, and commission of electrical point with  45 Amp electrical grid switch of  1-gang, 1- way switch with LED power indicator includes using wires of (2x4) mm² and 1.0 kV grade 1*2.5mm² for earthing,  laid inside concealed PVC conduit pipe (25 mm dia) or exposed GI conduit with all accessories. The price includes laying, drilling & cutting ( concrete wall if required ), and commissioning to complete works as required. ","NO.",3,null,0]
[16,"Industrial Socket 3-ph:\n Supply, install, connect, test, and commission of 3-Phase Industrial Sockets 32A, 5 pins with male Plug, waterproof, enclosure plastic case with the cover, includes 1.0 kV grade, (4x6mm2+1x4mm2) flexible cable, copper conductors, laid through Galvanized metal conduit suitable size, with all accessories. The price includes, laying, drilling & cutting ( concrete wall if required ) and commissioning to complete works as required.","NO.",4,null,0]
[17,"Power Cable (4x95)mm²:\nSupply, install, connect, lay, test, and commission of power cable,  PVC insulated, armored, PVC sheathed, copper conductor, 1.0 kV grade, (4x95)mm², from nearest building to water station hall. The price includes cable terminals, lugs, trenches, excavation works, spreading fine sand, tiles, danger tape, laying, drilling & cutting ( concrete wall/street if required ), reinstatement of the cable path as before, and commissioning to complete the works as required. All works should be according to Iraqi Technical Specifications shown on (Annex_1_).  ","ML",200,null,0]
[18,"Power Cable (3x35+1x16)mm²:\nSupply, install, connect, lay, test and commission of power cable (3x35+1x16)mm²,  PVC insulated and sheathed copper conductor 1.0 kV grade. The price includes cable terminals, lugs, laying, drilling & cutting ( concrete wall if required ) and commissioning to complete works as required. All works should be according to Iraqi Technical Specifications shown on (Annex_1_).  ","ML",150,null,0]
[19,"Power Cable (4x16)mm²:\nSupply, install, connect, lay, test, and commission of power cable (4x16)mm²  PVC insulated and sheathed copper conductor 1.0 kV grade. The price includes cable terminals, lugs, laying, fixing on cable tray, drilling & cutting ( concrete wall if required ), and commissioning to complete works as required. All works should be according to Iraqi Technical Specifications shown on (Annex_1_).   ","ML",60,null,0]
[20,"Cable tray (20cm x 5cm):\nSupplying, installing, and fixing of galvanized metal cable tray with cover and all accessories ( such as reducer, T-Junction, L- Junction, Floor support, Wall mounted support, Joints, etc.) and fixing accessories at the distance of 0.5m to each other, including holes on the walls for passing cables and trays with all accessories. The price includes supplying all accessories, cutting, excavation, drilling, fixing, painting, and any other to complete work as required. ","ML",120,null,0]
[21,"Earthing system:\nSupply, install and connect earthing system containing (3 number of 20 mm dia, 1.5m length, earthing copper rods, 2m spacing each ( triangle or straight formation based on space availability), connected together using 1x95mm² bare Cu conductor (by a copper nut and bolts), and connecting to MDB using the earthing cables ECC, the 1.0 kV grade, 1x70mm2 copper cable, and using 1x 16 mm² to connect MDB to SDBs and motors, for cables less than 16mm2 should be same as neutral size as well for connecting SDBs to Split units, water boiler, water cooler and outlets with all accessories. Price includes supplying all necessary materials /accessories, installing, laying, testing, commissioning,  excavation pit LxW, 1.8 m x 0.5m ( for each Cu rod and refill with a mixture of coal, salt, GEM, and Soft soil, etc.) to complete work as required. (Consider 3 pits = 1 set, where each pit consists of all materials/accessories  as depicted in attached (Annex_2_). Recommended a ground resistance value be less than 10 ohms.","LS",3,null,0]
[null,"Subtotal for Electrical Works",null,null,null,{"$f":"SUM(F78:F100)","v":0}]
[null,"Mech. Works"]
[1,"Water pump (For more information see the compliance sheet)\nSupplying, install, commissioning and test (horizontal single stage split case) PN 10,  Q=50 m3/h , H=70m, rpm 3000, with high quality  flexible coupling and Guard) , impeller cast iron, shaft steel type -AISI 420, rotating assembly dynamically balanced, sensitive devices for ,dry running, heat increasing (for ball Bering, coils). The work includes dismantling the old pumps and transfer them to the university warehouse ,fittings, ...etc. and making all required modification, Replacing (pipes, reducers), for the existed suction and supply pipes, to fit the new pump. Work and price include painting all existed pipes and extra new pipes, concrete pump base as site request and modifications. Also the work include  supply and install: \n1- Suction cast iron flanged gate valve, PN 10 , one pieces. \n2- Supply cast iron  flanged gate valve,  PN 10, one pieces.\n3- cast iron flanged Check valve, PN 10, one pieces.\n4- cast iron flanged strainer, PN 10, one pieces.\n5- flexible connection for suction and supply sides two pieces PN 10.\nas well as all needed works to complete the job.","NO.",3,null,{"$f":"D103*E103","v":0}]
[2,"Water pump (For more information see the compliance sheet)\nSupplying, install, commissioning and test (horizontal single stage split case) PN 10,  Q= 65 m3/h , H=80m, rpm 3000, with high quality  flexible coupling and Guard) , impeller cast iron, shaft steel type -AISI 420, rotating assembly dynamically balanced, sensitive devices for ,dry running, heat increasing (for ball Bering, coils). The work includes dismantling the old pump and transfer them to the university warehouse ,fittings, ...etc. and making all required modification, Replacing(pipes, reducers), for the existed suction and delivery pipes, to fit the new pump. Work and price include painting all existed pipes and extra new pipes, concrete pump base as site request and modifications. Also the work include  supply and install: \n1- Suction cast iron flanged gate valve, PN 10 , one pieces. \n2- discharge cast iron  flanged gate valve,  PN 10, one pieces.\n3- cast iron flanged Check valve, PN 10, one pieces.\n4- cast iron flanged strainer, PN 10, one pieces.\n5- flexible connection for suction and discharge sides two pieces PN 10.\nas well as all needed works to complete the job.","NO.",3,null,{"$f":"D104*E104","v":0}]
[3,"Water pump (For more information see the compliance sheet)\nSupplying, install, commissioning and test (horizontal single stage split case) PN 10,  Q= 95 m3/h , H=65m, rpm 3000, with high quality  flexible coupling and Guard) , impeller cast iron, shaft steel type -AISI 420, rotating assembly dynamically balanced, sensitive devices for ,dry running, heat increasing (for ball Bering, coils). The work includes dismantling the old pump and transfer them to the university warehouse ,fittings, ...etc. and making all required modification, Replacing(pipes, reducers), for the existed suction and delivery pipes, to fit the new pump. Work and price include painting all existed pipes and extra new pipes, concrete pump base as site request and modifications. Also the work include  supply and install: \n1- Suction cast iron flanged gate valve, PN 10 , one pieces. \n2- discharge cast iron  flanged gate valve,  PN 10, one pieces.\n3- cast iron flanged Check valve, PN 10, one pieces.\n4- cast iron flanged strainer, PN 10, one pieces.\n5- flexible connection for suction and discharge sides two pieces PN 10.\nas well as all needed works to complete the job.","NO.",3,null,0]
[4,"Mechanical float valve Ø8\"\nSupply, install and test of mechanical float valve PN 10, Body: Ductile cast iron EN-JS 1030 (GGG-40), Bonnet: Ductile cast iron EN-JS 1030 (GGG-40), Bonnet bolts: Stainless steel A2 (DIN EN ISO 3506), Piston: Ductile cast iron EN-JS 1030 (GGG-40), Float: Stainless steel 1.4301, Floater rods: Stainless steel 1.4301, Corrosion protection: Inside and outside epoxy coating , with all the required works to complete the Job.\n","NO.",5,null,0]
[5,"Mechanical float valve Ø6\"\nSupply, install and test of mechanical float valve PN 10, Body: Ductile cast iron EN-JS 1030 (GGG-40), Bonnet: Ductile cast iron EN-JS 1030 (GGG-40), Bonnet bolts: Stainless steel A2 (DIN EN ISO 3506), Piston: Ductile cast iron EN-JS 1030 (GGG-40), Float: Stainless steel 1.4301, Floater rods: Stainless steel 1.4301, Corrosion protection: Inside and outside epoxy coating , with all the required works to complete the Job.\n","NO.",5,null,0]
[6,"Mechanical float valve Ø4\"\nSupply, install and test of mechanical float valve PN 10, Body: Ductile cast iron EN-JS 1030 (GGG-40), Bonnet: Ductile cast iron EN-JS 1030 (GGG-40), Bonnet bolts: Stainless steel A2 (DIN EN ISO 3506), Piston: Ductile cast iron EN-JS 1030 (GGG-40), Float: Stainless steel 1.4301, Floater rods: Stainless steel 1.4301, Corrosion protection: Inside and outside epoxy coating , with all the required works to complete the Job.\n","NO.",4,null,0]
[7,"Gate valve Ø12\"\nSupply, install, test and commissioning of gate valve size 12\" the price include dismantling of the old existed valve and installing the new valve ,with all different size of (fittings and type of Pipes..etc..), civil works and all electrical works, with all the required works to complete the Job","NO.",1,null,0]
[8,"Gate valve Ø10\"\nSupply, install, test and commissioning of gate valve size 10\" the price include dismantling of the old existed valve and installing the new valve ,with all different size of (fittings and type of Pipes..etc..), civil works and all electrical works, with all the required works to complete the Job","NO.",1,null,0]
[9,"Gate valve Ø8\"\nSupply, install, test and commissioning of gate valve size 8\" the price include dismantling of the old existed valve and installing the new valve ,with all different size of (fittings and type of Pipes..etc..), civil works and all electrical works, with all the required works to complete the Job","NO.",6,null,0]
[10,"Gate valve Ø4\"\nSupply, install, test and commissioning of gate valve size 4\" the price include dismantling of the old existed valve and installing the new valve ,with all different size of (fittings and type of Pipes..etc..), civil works and all electrical works, with all the required works to complete the Job","NO.",5,null,0]
[11,"Swing check valve Ø4\"\nSupply, install, test and commissioning of gate valve size 4\" the price include dismantling of the old existed valve and installing the new valve ,with all different size of (fittings and type of Pipes..etc..), civil works and all electrical works, with all the required works to complete the Job","NO.",5,null,0]
[12,"Galvanized pipe \nsupply,  installed, jointed, and tested complete of heaviest type galvanized pipe, the price include all type of fittings, supports, hangers, clamps, threaded rods, accessories, excavation a trench for pipe in all types of soil and place 10 cm of clean sand around the main pipe and backfilling with clean soil up to the ground level, with all accessories and all the required work.",null,null,null,0]
[12.1,"Ø 8\"","ML",210,null,0]
[12.2,"Ø6\"","ML",160,null,0]
[12.3,"Ø 4\"","ML",170,null,0]
[13,"Exhaust fan\nsupply, installation and operation of wall mounted type exhaust fan, for high lift pump room , capacity 2400 m3/hr. the price include dismantling of old exhaust fan and installing the new exhaust fan , with all accessories to complete as required. The price of works includes all accessories needed, cables, switch, civil works,... etc., as well as all needed works to complete the job.\n","NO.",6,null,0]
[14,"AC units: (For more details for items see compliance sheet)\nSupply, install, fixing, connect, test and commissioning of air-conditioning (Cool & Heat). The price include  supply & installation of 1.0 kV grade 3*4mm² PVC insulated  copper cable with switch 45 A for single phase AC units and 4X6mm² with 3 P, MCB 32 Amp for 3 phase AC units (if any) . Also the price include installation of the out door units on the roof  of building or installed suspended with wall by special iron base with all accessories of the building with base vibration absorber height more than 6cm for out door units, protection cage, the devices also include all accessories with all extra copper pipes connections through the 3 inch PVC sleeve pipe also extra refrigerant gas, cable tray, the net work condensing 1 inch PVC pipe an must be connected to the nearest floor drain. With all accessories needed, as well as all needed works to complete the job entirely.",null,null,null,0]
[14.1,"48000BTUH vertical type ","NO.",2,null,0]
[14.2,"24000BTUH wall mounted ","NO.",2,null,0]
[14.3,"18000 BTUH cassette type","NO.",1,null,0]
[null,"Total of Mechanical Works",null,null,null,{"$f":"SUM(F103:F122)","v":0}]
[null,"Total",null,null,null,{"$f":"F123+F101+F74+F54","v":0}]
[]
[]
[]
[]
[null,"Name of Bidder:         ______________________________"]
[]
[null,"Authorized signature: ______________________________"]
[]
[null,"Functional Title:         ______________________________"]
[]
[null,"Company:                   ______________________________"]
[]
[null,"Date:                          ______________________________                          "]